[Event "*** Titled Tuesday Blitz"]
[Site "Chess.com"]
[Date "2020.05.12"]
[Round "8"]
[White "SPEEDSKATER"]
[Black "LiemLe"]
[Result "0-1"]
[WhiteElo "2769"]
[BlackElo "2961"]
[TimeControl "180+1"]
[EndTime "11:30:49 PDT"]
[Termination "LiemLe won by resignation"]

1. d4 {[%clk 0:03:00.9]} 1... f5 {[%clk 0:02:59.6]} 2. Bg5 {[%clk 0:02:59.1]}
2... g6 {[%clk 0:02:57.2]} 3. Nc3 {[%clk 0:02:58.6]} 3... Bg7 {[%clk 0:02:56.5]}
4. e3 {[%clk 0:02:58.5]} 4... h6 {[%clk 0:02:52.1]} 5. Bf4 {[%clk 0:02:58.1]}
5... d6 {[%clk 0:02:51.4]} 6. h4 {[%clk 0:02:57.8]} 6... Nf6 {[%clk 0:02:33.6]}
7. Qf3 {[%clk 0:02:49.2]} 7... Nc6 {[%clk 0:02:32.5]} 8. Bc4 {[%clk 0:02:48.5]}
8... e5 {[%clk 0:01:59.5]} 9. Qg3 {[%clk 0:01:52.3]} 9... Ng4 {[%clk 0:01:58.9]}
10. dxe5 {[%clk 0:01:41.1]} 10... dxe5 {[%clk 0:01:59.8]} 11. Rd1 {[%clk
0:01:40.8]} 11... Bd7 {[%clk 0:01:52.5]} 12. f3 {[%clk 0:01:27.3]} 12... exf4
{[%clk 0:01:51.8]} 13. exf4 {[%clk 0:01:27.1]} 13... Qe7+ {[%clk 0:01:29.9]} 14.
Nge2 {[%clk 0:01:26.5]} 14... Bxc3+ {[%clk 0:01:28]} 15. bxc3 {[%clk 0:01:27.4]}
15... Ne3 {[%clk 0:01:27.3]} 16. Qxg6+ {[%clk 0:01:27.4]} 16... Kd8 {[%clk
0:01:24.7]} 17. Rxd7+ {[%clk 0:01:06.5]} 17... Kxd7 {[%clk 0:01:25.6]} 18. Bb3
{[%clk 0:01:05.4]} 18... Rae8 {[%clk 0:01:20.8]} 19. Kf2 {[%clk 0:01:02.5]}
19... Kc8 {[%clk 0:01:03.5]} 20. Re1 {[%clk 0:01:01.8]} 20... Nd1+ {[%clk
0:00:51.6]} 21. Kf1 {[%clk 0:00:57.2]} 21... Nxc3 {[%clk 0:00:48.6]} 22. Qxf5+
{[%clk 0:00:57.2]} 22... Kb8 {[%clk 0:00:48.7]} 0-1

[Event "*** Titled Tuesday Blitz"]
[Site "Chess.com"]
[Date "2020.05.12"]
[Round "8"]
[White "Alexander_Moskalenko"]
[Black "BakaPG"]
[Result "0-1"]
[WhiteElo "2805"]
[BlackElo "2671"]
[TimeControl "180+1"]
[EndTime "11:30:54 PDT"]
[Termination "BakaPG won by resignation"]

1. e4 {[%clk 0:03:00.9]} 1... e6 {[%clk 0:02:59.4]} 2. d4 {[%clk 0:03:00.7]}
2... d5 {[%clk 0:03:00]} 3. Nc3 {[%clk 0:03:00]} 3... Nf6 {[%clk 0:03:00]} 4.
exd5 {[%clk 0:02:53.8]} 4... exd5 {[%clk 0:02:59.3]} 5. Bd3 {[%clk 0:02:53.8]}
5... Bd6 {[%clk 0:02:58.8]} 6. Qf3 {[%clk 0:02:54.3]} 6... Bg4 {[%clk
0:02:47.4]} 7. Qe3+ {[%clk 0:02:53.8]} 7... Be7 {[%clk 0:02:47.3]} 8. h3 {[%clk
0:02:53.4]} 8... Bh5 {[%clk 0:02:42.5]} 9. Qg3 {[%clk 0:02:50]} 9... O-O {[%clk
0:02:32.8]} 10. Bf4 {[%clk 0:02:47.7]} 10... Re8 {[%clk 0:02:23.1]} 11. Nge2
{[%clk 0:02:46.6]} 11... Bd6 {[%clk 0:02:12.2]} 12. Bxd6 {[%clk 0:02:30.3]}
12... cxd6 {[%clk 0:02:12]} 13. O-O {[%clk 0:02:27.8]} 13... Bxe2 {[%clk
0:02:01.8]} 14. Nxe2 {[%clk 0:02:26.6]} 14... Nc6 {[%clk 0:02:00.5]} 15. c3
{[%clk 0:02:26.9]} 15... Ne4 {[%clk 0:01:59.1]} 16. Qf4 {[%clk 0:02:26.7]} 16...
Qb6 {[%clk 0:01:48.8]} 17. Rab1 {[%clk 0:02:20.7]} 17... Rad8 {[%clk 0:01:47.5]}
18. Rfe1 {[%clk 0:02:19.4]} 18... Nf6 {[%clk 0:01:39.4]} 19. g4 {[%clk
0:02:13.6]} 19... h6 {[%clk 0:01:38.1]} 20. h4 {[%clk 0:02:13.9]} 20... Ne7
{[%clk 0:01:34.5]} 21. g5 {[%clk 0:02:12.6]} 21... hxg5 {[%clk 0:01:33.6]} 22.
hxg5 {[%clk 0:02:13.5]} 22... Ne4 {[%clk 0:01:33.5]} 23. Bxe4 {[%clk 0:01:49]}
23... dxe4 {[%clk 0:01:32]} 24. Qxe4 {[%clk 0:01:49.9]} 24... Ng6 {[%clk
0:01:29.5]} 25. Qf5 {[%clk 0:01:49.5]} 25... Qa6 {[%clk 0:01:24.1]} 26. Nf4
{[%clk 0:01:47.5]} 26... Nxf4 {[%clk 0:01:20.1]} 27. Qxf4 {[%clk 0:01:48.4]}
27... Qxa2 {[%clk 0:01:18.5]} 28. Qf3 {[%clk 0:01:30.1]} 28... Rxe1+ {[%clk
0:01:12.2]} 29. Rxe1 {[%clk 0:01:18]} 29... Qxb2 {[%clk 0:01:12.5]} 30. Re7
{[%clk 0:01:17.4]} 30... Rf8 {[%clk 0:01:12.2]} 31. g6 {[%clk 0:01:12.9]} 31...
Qc1+ {[%clk 0:01:12]} 32. Kh2 {[%clk 0:01:01.9]} 32... Qh6+ {[%clk 0:01:11.3]}
33. Kg1 {[%clk 0:01:02]} 33... Qg5+ {[%clk 0:01:11]} 34. Kf1 {[%clk 0:01:02.6]}
34... Qxe7 {[%clk 0:01:11.2]} 0-1

[Event "*** Titled Tuesday Blitz"]
[Site "Chess.com"]
[Date "2020.05.12"]
[Round "8"]
[White "2nd_life"]
[Black "RATNAKARAN"]
[Result "1-0"]
[WhiteElo "2436"]
[BlackElo "2560"]
[TimeControl "180+1"]
[EndTime "11:30:54 PDT"]
[Termination "2nd_life won by resignation"]

1. e4 {[%clk 0:03:00.9]} 1... e6 {[%clk 0:02:59.8]} 2. d4 {[%clk 0:03:00.2]}
2... d5 {[%clk 0:03:00]} 3. Nc3 {[%clk 0:03:00.7]} 3... Nf6 {[%clk 0:03:00]} 4.
Bg5 {[%clk 0:03:00.1]} 4... Be7 {[%clk 0:02:59.8]} 5. e5 {[%clk 0:03:00]} 5...
Nfd7 {[%clk 0:03:00]} 6. Bxe7 {[%clk 0:02:58.6]} 6... Qxe7 {[%clk 0:03:00.3]} 7.
f4 {[%clk 0:02:58.2]} 7... O-O {[%clk 0:03:00.2]} 8. Nf3 {[%clk 0:02:56.8]} 8...
f5 {[%clk 0:03:00.4]} 9. Ne2 {[%clk 0:02:44.6]} 9... c5 {[%clk 0:03:00]} 10. c3
{[%clk 0:02:44]} 10... b5 {[%clk 0:03:00]} 11. a3 {[%clk 0:02:41.6]} 11... a5
{[%clk 0:02:59.3]} 12. h3 {[%clk 0:02:39.9]} 12... Ba6 {[%clk 0:02:58.8]} 13.
Qd2 {[%clk 0:02:05]} 13... b4 {[%clk 0:02:57.1]} 14. axb4 {[%clk 0:01:57.8]}
14... axb4 {[%clk 0:02:57.2]} 15. Ng3 {[%clk 0:01:57.1]} 15... bxc3 {[%clk
0:02:55.1]} 16. bxc3 {[%clk 0:01:54.8]} 16... cxd4 {[%clk 0:02:55.2]} 17. cxd4
{[%clk 0:01:54]} 17... Bxf1 {[%clk 0:02:52.2]} 18. Rxa8 {[%clk 0:01:45.5]} 18...
Ba6 {[%clk 0:02:51.7]} 19. Qa5 {[%clk 0:01:24.1]} 19... Bb7 {[%clk 0:02:50.9]}
20. Qa3 {[%clk 0:01:20.5]} 20... Qd8 {[%clk 0:02:38.4]} 21. Ra7 {[%clk
0:01:16.3]} 21... Qb6 {[%clk 0:02:36.1]} 22. O-O {[%clk 0:01:06.9]} 22... Ba6
{[%clk 0:02:31.4]} 23. Rxd7 {[%clk 0:00:48.7]} 23... Nxd7 {[%clk 0:02:24.2]} 24.
Ra1 {[%clk 0:00:42.9]} 24... Nb8 {[%clk 0:02:20.2]} 25. Kh2 {[%clk 0:00:37]}
25... h6 {[%clk 0:02:19.1]} 26. Qe7 {[%clk 0:00:34.5]} 26... Rf7 {[%clk
0:02:16.4]} 27. Qe8+ {[%clk 0:00:29.9]} 27... Rf8 {[%clk 0:02:15.6]} 28. Qg6
{[%clk 0:00:25.2]} 28... Kh8 {[%clk 0:02:06]} 29. Nh5 {[%clk 0:00:23]} 29... Rg8
{[%clk 0:02:05.1]} 30. Ng5 {[%clk 0:00:13.4]} 30... hxg5 {[%clk 0:02:04.1]} 31.
Nf6 {[%clk 0:00:13.3]} 1-0

[Event "*** Titled Tuesday Blitz"]
[Site "Chess.com"]
[Date "2020.05.12"]
[Round "8"]
[White "shav3184"]
[Black "GMartin_Petrov"]
[Result "0-1"]
[WhiteElo "2336"]
[BlackElo "2563"]
[TimeControl "180+1"]
[EndTime "11:30:59 PDT"]
[Termination "GMartin_Petrov won by resignation"]

1. e4 {[%clk 0:03:00.9]} 1... c5 {[%clk 0:02:58.1]} 2. Nf3 {[%clk 0:03:00]} 2...
d6 {[%clk 0:02:58.4]} 3. d4 {[%clk 0:02:59.5]} 3... cxd4 {[%clk 0:02:59.3]} 4.
Nxd4 {[%clk 0:02:59.9]} 4... Nf6 {[%clk 0:02:59.9]} 5. f3 {[%clk 0:02:59.9]}
5... e5 {[%clk 0:02:58.5]} 6. Nb3 {[%clk 0:02:59.3]} 6... d5 {[%clk 0:02:57.7]}
7. Bg5 {[%clk 0:02:58.2]} 7... Be6 {[%clk 0:02:57.7]} 8. exd5 {[%clk 0:02:56.5]}
8... Qxd5 {[%clk 0:02:56.4]} 9. Qxd5 {[%clk 0:02:56.3]} 9... Nxd5 {[%clk
0:02:56.1]} 10. Nc3 {[%clk 0:02:57.2]} 10... Nxc3 {[%clk 0:02:48.9]} 11. bxc3
{[%clk 0:02:58.1]} 11... Ba3 {[%clk 0:02:48.7]} 12. Bb5+ {[%clk 0:02:51.2]}
12... Nc6 {[%clk 0:02:47.2]} 13. Na5 {[%clk 0:02:44.9]} 13... O-O {[%clk
0:02:38.3]} 14. Bxc6 {[%clk 0:02:35.4]} 14... bxc6 {[%clk 0:02:39.2]} 15. Nxc6
{[%clk 0:02:35.9]} 15... Bb2 {[%clk 0:02:31.4]} 16. Rb1 {[%clk 0:02:20.1]} 16...
Bxc3+ {[%clk 0:02:30.3]} 17. Kf2 {[%clk 0:02:19.3]} 17... f6 {[%clk 0:02:26.2]}
18. Be3 {[%clk 0:02:17.2]} 18... Bxa2 {[%clk 0:02:24.5]} 19. Rb7 {[%clk
0:02:16.1]} 19... a5 {[%clk 0:02:22.8]} 20. Rd1 {[%clk 0:02:08.5]} 20... Rf7
{[%clk 0:02:15.2]} 21. Ne7+ {[%clk 0:02:01.9]} 21... Kh8 {[%clk 0:02:12.2]} 22.
Rdd7 {[%clk 0:02:00.6]} 22... Bb4 {[%clk 0:01:51.3]} 23. Nc6 {[%clk 0:01:31.5]}
23... Rxd7 {[%clk 0:01:49.8]} 24. Rxd7 {[%clk 0:01:32.4]} 24... Bf8 {[%clk
0:01:47.4]} 25. h4 {[%clk 0:01:24.6]} 25... a4 {[%clk 0:01:45.9]} 26. h5 {[%clk
0:01:23.2]} 26... h6 {[%clk 0:01:45.9]} 27. c3 {[%clk 0:00:54.9]} 27... a3
{[%clk 0:01:44.8]} 28. Ra7 {[%clk 0:00:34.2]} 28... Rxa7 {[%clk 0:01:42.6]} 29.
Nxa7 {[%clk 0:00:35.1]} 29... Bc4 {[%clk 0:01:34.6]} 30. Bc1 {[%clk 0:00:30.2]}
30... a2 {[%clk 0:01:35]} 31. Bb2 {[%clk 0:00:29.7]} 31... Bc5+ {[%clk
0:01:35.7]} 0-1

[Event "*** Titled Tuesday Blitz"]
[Site "Chess.com"]
[Date "2020.05.12"]
[Round "8"]
[White "MaxLeto"]
[Black "Gromes7"]
[Result "1-0"]
[WhiteElo "2320"]
[BlackElo "2126"]
[TimeControl "180+1"]
[EndTime "11:31:12 PDT"]
[Termination "MaxLeto won by resignation"]

1. g4 {[%clk 0:03:00.9]} 1... c5 {[%clk 0:02:56]} 2. Bg2 {[%clk 0:02:57.2]} 2...
Nc6 {[%clk 0:02:55.5]} 3. c4 {[%clk 0:02:54.8]} 3... g6 {[%clk 0:02:55.4]} 4.
Nc3 {[%clk 0:02:54.3]} 4... Bg7 {[%clk 0:02:55.3]} 5. g5 {[%clk 0:02:53.4]} 5...
h6 {[%clk 0:02:43.7]} 6. h4 {[%clk 0:02:49]} 6... e6 {[%clk 0:02:30.7]} 7. d3
{[%clk 0:02:47.7]} 7... Qc7 {[%clk 0:02:06.3]} 8. Nh3 {[%clk 0:02:44.3]} 8... a6
{[%clk 0:02:03.7]} 9. Bf4 {[%clk 0:02:44.2]} 9... e5 {[%clk 0:02:03.6]} 10. Nd5
{[%clk 0:02:31.2]} 10... Qd8 {[%clk 0:01:51.8]} 11. Bd2 {[%clk 0:02:08.6]} 11...
Nge7 {[%clk 0:01:36.2]} 12. gxh6 {[%clk 0:01:57.2]} 12... Bxh6 {[%clk
0:01:26.1]} 13. Bxh6 {[%clk 0:01:51.5]} 13... Rxh6 {[%clk 0:01:25.7]} 14. Qd2
{[%clk 0:01:52.1]} 14... Rxh4 {[%clk 0:01:10.8]} 15. Nf6+ {[%clk 0:01:50.8]}
15... Kf8 {[%clk 0:01:10.7]} 16. O-O-O {[%clk 0:01:30.7]} 16... Ng8 {[%clk
0:00:36.1]} 17. Ne4 {[%clk 0:01:22.2]} 17... d6 {[%clk 0:00:28.3]} 18. Nhg5
{[%clk 0:01:22.1]} 18... Rxh1 {[%clk 0:00:22.1]} 19. Rxh1 {[%clk 0:01:23]} 19...
Nf6 {[%clk 0:00:09.1]} 20. Nxf6 {[%clk 0:01:17.9]} 20... Qxf6 {[%clk 0:00:08.9]}
21. Nh7+ {[%clk 0:01:18.3]} 1-0

[Event "*** Titled Tuesday Blitz"]
[Site "Chess.com"]
[Date "2020.05.12"]
[Round "8"]
[White "snowlord"]
[Black "ChessTraining77"]
[Result "1-0"]
[WhiteElo "2748"]
[BlackElo "2541"]
[TimeControl "180+1"]
[EndTime "11:31:14 PDT"]
[Termination "snowlord won by resignation"]

1. c4 {[%clk 0:03:00.1]} 1... c6 {[%clk 0:02:59]} 2. Nf3 {[%clk 0:02:58]} 2...
d5 {[%clk 0:02:58.7]} 3. g3 {[%clk 0:02:58.5]} 3... Nf6 {[%clk 0:02:58.3]} 4.
Bg2 {[%clk 0:02:56.9]} 4... Bg4 {[%clk 0:02:58.3]} 5. Ne5 {[%clk 0:02:49.9]}
5... Be6 {[%clk 0:02:57.5]} 6. cxd5 {[%clk 0:02:49.6]} 6... Bxd5 {[%clk
0:02:57.6]} 7. Nf3 {[%clk 0:02:50.2]} 7... c5 {[%clk 0:02:57.5]} 8. O-O {[%clk
0:02:44.5]} 8... e6 {[%clk 0:02:57.1]} 9. d3 {[%clk 0:02:25.8]} 9... Be7 {[%clk
0:02:56.3]} 10. e4 {[%clk 0:02:25.9]} 10... Bc6 {[%clk 0:02:56.2]} 11. Nc3
{[%clk 0:02:26.4]} 11... O-O {[%clk 0:02:53]} 12. Re1 {[%clk 0:02:07.1]} 12...
Qa5 {[%clk 0:02:29]} 13. d4 {[%clk 0:02:04.4]} 13... Rd8 {[%clk 0:02:24.1]} 14.
d5 {[%clk 0:01:02.5]} 14... exd5 {[%clk 0:02:21.9]} 15. exd5 {[%clk 0:01:02.2]}
15... Nxd5 {[%clk 0:02:17.8]} 16. Nxd5 {[%clk 0:01:02.5]} 16... Rxd5 {[%clk
0:02:17.3]} 17. Qe2 {[%clk 0:00:49.8]} 17... Bf8 {[%clk 0:02:09.7]} 18. Ne5
{[%clk 0:00:34.2]} 18... Rd8 {[%clk 0:02:03.1]} 19. Nxf7 {[%clk 0:00:33.7]}
19... Re8 {[%clk 0:02:00.1]} 20. Ne5 {[%clk 0:00:19.1]} 20... Qa6 {[%clk
0:01:39.3]} 21. Qh5 {[%clk 0:00:19]} 21... Nd7 {[%clk 0:01:33]} 22. Qf7+ {[%clk
0:00:17.6]} 22... Kh8 {[%clk 0:01:32.3]} 23. Bf4 {[%clk 0:00:17.2]} 23... Nxe5
{[%clk 0:01:23.3]} 24. Bxe5 {[%clk 0:00:16.1]} 24... Bxg2 {[%clk 0:01:22.3]} 25.
Bxg7+ {[%clk 0:00:15.4]} 1-0

[Event "*** Titled Tuesday Blitz"]
[Site "Chess.com"]
[Date "2020.05.12"]
[Round "8"]
[White "Hanging_pointer"]
[Black "heartofatiger"]
[Result "0-1"]
[WhiteElo "2585"]
[BlackElo "2470"]
[TimeControl "180+1"]
[EndTime "11:31:15 PDT"]
[Termination "heartofatiger won by checkmate"]

1. d4 {[%clk 0:02:59.9]} 1... Nf6 {[%clk 0:02:59.7]} 2. c4 {[%clk 0:03:00]} 2...
g6 {[%clk 0:03:00.3]} 3. Nc3 {[%clk 0:02:59.7]} 3... Bg7 {[%clk 0:03:00.9]} 4.
e4 {[%clk 0:02:59.4]} 4... d6 {[%clk 0:03:01.5]} 5. f3 {[%clk 0:02:59.5]} 5...
O-O {[%clk 0:03:02]} 6. Be3 {[%clk 0:02:59.6]} 6... Nc6 {[%clk 0:03:00.4]} 7.
Qd2 {[%clk 0:02:58.3]} 7... a6 {[%clk 0:03:00.5]} 8. Nge2 {[%clk 0:02:59.2]}
8... Rb8 {[%clk 0:02:59.6]} 9. a4 {[%clk 0:02:49.6]} 9... a5 {[%clk 0:02:56]}
10. d5 {[%clk 0:02:37.2]} 10... Nb4 {[%clk 0:02:54.6]} 11. Nd4 {[%clk 0:02:35]}
11... c5 {[%clk 0:02:47.7]} 12. Ndb5 {[%clk 0:02:33.7]} 12... e5 {[%clk
0:02:29.9]} 13. g4 {[%clk 0:02:30.7]} 13... h5 {[%clk 0:02:27.6]} 14. h3 {[%clk
0:02:29.1]} 14... Ne8 {[%clk 0:02:20.5]} 15. Be2 {[%clk 0:02:21.2]} 15... h4
{[%clk 0:02:15.3]} 16. Bg5 {[%clk 0:02:13.8]} 16... Bf6 {[%clk 0:02:09.8]} 17.
Bh6 {[%clk 0:02:12.5]} 17... Ng7 {[%clk 0:02:05.4]} 18. f4 {[%clk 0:02:06.9]}
18... exf4 {[%clk 0:02:01.7]} 19. Bxf4 {[%clk 0:02:07.8]} 19... Ne8 {[%clk
0:01:51.7]} 20. O-O-O {[%clk 0:02:04.6]} 20... g5 {[%clk 0:01:47.6]} 21. Be3
{[%clk 0:02:02.7]} 21... Qe7 {[%clk 0:01:14.1]} 22. Rhf1 {[%clk 0:01:56.3]}
22... Bd7 {[%clk 0:01:12.4]} 23. Rxf6 {[%clk 0:01:46.4]} 23... Qxf6 {[%clk
0:01:11]} 24. Bxg5 {[%clk 0:01:46.5]} 24... Qe5 {[%clk 0:01:02.6]} 25. Bxh4
{[%clk 0:01:39.3]} 25... Bxb5 {[%clk 0:00:59]} 26. Nxb5 {[%clk 0:01:32.7]} 26...
Qxe4 {[%clk 0:00:49.8]} 27. Nc3 {[%clk 0:01:27.6]} 27... Qg6 {[%clk 0:00:42.6]}
28. Be7 {[%clk 0:01:21.7]} 28... Nf6 {[%clk 0:00:37.2]} 29. Bxd6 {[%clk
0:01:21.8]} 29... Ne4 {[%clk 0:00:28.8]} 30. Nxe4 {[%clk 0:01:19.3]} 30... Qxe4
{[%clk 0:00:27.9]} 31. Bxb8 {[%clk 0:01:18.9]} 31... Na2# {[%clk 0:00:26.7]} 0-1

[Event "*** Titled Tuesday Blitz"]
[Site "Chess.com"]
[Date "2020.05.12"]
[Round "8"]
[White "Oglob71"]
[Black "MusicCityMaster"]
[Result "1-0"]
[WhiteElo "2496"]
[BlackElo "2319"]
[TimeControl "180+1"]
[EndTime "11:31:15 PDT"]
[Termination "Oglob71 won by resignation"]

1. d4 {[%clk 0:03:00]} 1... Nf6 {[%clk 0:02:59.5]} 2. Nf3 {[%clk 0:03:00.5]}
2... c5 {[%clk 0:02:59]} 3. d5 {[%clk 0:02:59]} 3... g6 {[%clk 0:02:57.8]} 4. c4
{[%clk 0:02:58.7]} 4... b5 {[%clk 0:02:57.7]} 5. Qc2 {[%clk 0:02:57.3]} 5... Bb7
{[%clk 0:02:49.7]} 6. e4 {[%clk 0:02:57.2]} 6... bxc4 {[%clk 0:02:49.8]} 7. Bxc4
{[%clk 0:02:56.1]} 7... Bg7 {[%clk 0:02:50.3]} 8. O-O {[%clk 0:02:55.3]} 8...
O-O {[%clk 0:02:48.8]} 9. Nc3 {[%clk 0:02:55.7]} 9... d6 {[%clk 0:02:48.8]} 10.
Bf4 {[%clk 0:02:54.2]} 10... Nbd7 {[%clk 0:02:44.7]} 11. Rad1 {[%clk 0:02:54.4]}
11... Nb6 {[%clk 0:02:43.4]} 12. Be2 {[%clk 0:02:52.6]} 12... a5 {[%clk
0:02:38.9]} 13. Rfe1 {[%clk 0:02:51.6]} 13... Nfd7 {[%clk 0:02:26.8]} 14. h3
{[%clk 0:02:51.4]} 14... Ba6 {[%clk 0:02:22.8]} 15. Bxa6 {[%clk 0:02:45.6]}
15... Rxa6 {[%clk 0:02:23.7]} 16. e5 {[%clk 0:02:45.6]} 16... dxe5 {[%clk
0:02:03.1]} 17. Nxe5 {[%clk 0:02:40.9]} 17... Nxe5 {[%clk 0:02:00.6]} 18. Bxe5
{[%clk 0:02:41.1]} 18... Bxe5 {[%clk 0:01:46.9]} 19. Rxe5 {[%clk 0:02:40.9]}
19... Nc4 {[%clk 0:01:47]} 20. Re2 {[%clk 0:02:39.5]} 20... Nd6 {[%clk
0:01:45.7]} 21. Rde1 {[%clk 0:02:38.7]} 21... Ra7 {[%clk 0:01:44.6]} 22. Ne4
{[%clk 0:02:35.9]} 22... Nxe4 {[%clk 0:01:38.9]} 23. Qxe4 {[%clk 0:02:35.7]}
23... Rd7 {[%clk 0:01:35.7]} 24. b3 {[%clk 0:02:33.7]} 24... Rxd5 {[%clk
0:01:31.5]} 25. Qxe7 {[%clk 0:02:33.3]} 25... Qxe7 {[%clk 0:01:31.7]} 26. Rxe7
{[%clk 0:02:33.4]} 26... Rd2 {[%clk 0:01:32]} 27. R7e2 {[%clk 0:02:33.5]} 27...
Rfd8 {[%clk 0:01:31.4]} 28. f3 {[%clk 0:02:28.6]} 28... Kg7 {[%clk 0:01:04.7]}
29. Kf2 {[%clk 0:02:28.9]} 29... Kf6 {[%clk 0:01:02.7]} 30. Rxd2 {[%clk
0:02:25.3]} 30... Rxd2+ {[%clk 0:01:02]} 31. Re2 {[%clk 0:02:25.8]} 31... Rxe2+
{[%clk 0:00:56.7]} 32. Kxe2 {[%clk 0:02:26]} 32... Ke5 {[%clk 0:00:57.3]} 33.
Kd3 {[%clk 0:02:23.8]} 33... Kd5 {[%clk 0:00:57.6]} 34. f4 {[%clk 0:02:21.5]}
34... h5 {[%clk 0:00:50.1]} 35. g3 {[%clk 0:02:21]} 35... f6 {[%clk 0:00:49.5]}
36. g4 {[%clk 0:02:18]} 36... hxg4 {[%clk 0:00:49.3]} 37. hxg4 {[%clk
0:02:17.3]} 37... f5 {[%clk 0:00:48.4]} 38. g5 {[%clk 0:02:16.4]} 38... Kd6
{[%clk 0:00:35.2]} 39. Kc4 {[%clk 0:02:13.6]} 39... Kc6 {[%clk 0:00:35.4]} 40.
a4 {[%clk 0:02:09.2]} 40... Kd6 {[%clk 0:00:29.1]} 41. Kb5 {[%clk 0:02:09.3]}
41... Kd5 {[%clk 0:00:27.5]} 42. Kxa5 {[%clk 0:02:09.7]} 42... Ke4 {[%clk
0:00:23.8]} 43. Kb6 {[%clk 0:02:09.6]} 43... Kxf4 {[%clk 0:00:24.1]} 44. a5
{[%clk 0:02:09.9]} 44... Kxg5 {[%clk 0:00:19.1]} 45. a6 {[%clk 0:02:10.2]} 45...
f4 {[%clk 0:00:19.9]} 46. a7 {[%clk 0:02:10.6]} 46... Kg4 {[%clk 0:00:19.3]} 47.
a8=Q {[%clk 0:02:10.1]} 47... g5 {[%clk 0:00:20.2]} 48. Qg2+ {[%clk 0:02:07.6]}
48... Kf5 {[%clk 0:00:20.5]} 49. Kxc5 {[%clk 0:02:08]} 49... g4 {[%clk 0:00:21]}
50. Kd4 {[%clk 0:02:07.6]} 50... f3 {[%clk 0:00:21.9]} 51. Qg3 {[%clk
0:02:07.2]} 1-0

[Event "*** Titled Tuesday Blitz"]
[Site "Chess.com"]
[Date "2020.05.12"]
[Round "8"]
[White "MPGM"]
[Black "praveenb2002"]
[Result "0-1"]
[WhiteElo "2534"]
[BlackElo "2719"]
[TimeControl "180+1"]
[EndTime "11:31:18 PDT"]
[Termination "praveenb2002 won by resignation"]

1. d4 {[%clk 0:03:00.9]} 1... d5 {[%clk 0:02:59.6]} 2. c4 {[%clk 0:03:00]} 2...
c6 {[%clk 0:02:59.6]} 3. Nf3 {[%clk 0:02:58.4]} 3... Nf6 {[%clk 0:02:59.5]} 4.
Nbd2 {[%clk 0:02:58.3]} 4... Bf5 {[%clk 0:02:57.1]} 5. Nh4 {[%clk 0:02:58.7]}
5... Be4 {[%clk 0:02:50.5]} 6. Qb3 {[%clk 0:02:56.5]} 6... Qc7 {[%clk
0:02:47.1]} 7. e3 {[%clk 0:02:24.3]} 7... e6 {[%clk 0:02:44.3]} 8. f3 {[%clk
0:02:20.4]} 8... Bg6 {[%clk 0:02:44.4]} 9. Be2 {[%clk 0:02:12.2]} 9... Nbd7
{[%clk 0:02:43.9]} 10. g3 {[%clk 0:02:05.5]} 10... c5 {[%clk 0:02:43.6]} 11.
cxd5 {[%clk 0:01:54.2]} 11... exd5 {[%clk 0:02:31.9]} 12. Nxg6 {[%clk
0:01:52.8]} 12... hxg6 {[%clk 0:02:31.6]} 13. O-O {[%clk 0:01:51.1]} 13... Bd6
{[%clk 0:02:31.2]} 14. Kg2 {[%clk 0:01:32.2]} 14... Kf8 {[%clk 0:02:30.4]} 15.
Qd1 {[%clk 0:01:13.9]} 15... Re8 {[%clk 0:02:30]} 16. Nb1 {[%clk 0:01:05.6]}
16... cxd4 {[%clk 0:02:10.7]} 17. exd4 {[%clk 0:01:06.5]} 17... Nh5 {[%clk
0:01:52.3]} 18. f4 {[%clk 0:00:51.1]} 18... Nhf6 {[%clk 0:01:51.7]} 19. Nc3
{[%clk 0:00:50.4]} 19... a6 {[%clk 0:01:50.7]} 20. Bf3 {[%clk 0:00:47.5]} 20...
Nb6 {[%clk 0:01:47.9]} 21. Rf2 {[%clk 0:00:38.7]} 21... Qd7 {[%clk 0:01:46.1]}
22. b3 {[%clk 0:00:37.1]} 22... Qh3+ {[%clk 0:01:43]} 23. Kg1 {[%clk 0:00:36.7]}
23... Ne4 {[%clk 0:01:43.6]} 24. Nxe4 {[%clk 0:00:33.2]} 24... dxe4 {[%clk
0:01:43.3]} 25. Bg4 {[%clk 0:00:32.7]} 25... Qh7 {[%clk 0:01:37]} 26. Be3 {[%clk
0:00:16.5]} 26... Nd5 {[%clk 0:01:34]} 27. Qe2 {[%clk 0:00:16.8]} 27... f5
{[%clk 0:01:33.6]} 28. Qc4 {[%clk 0:00:06.6]} 28... Nxe3 {[%clk 0:01:32.7]} 29.
Bxf5 {[%clk 0:00:03]} 29... Nxc4 {[%clk 0:01:32.1]} 0-1

[Event "*** Titled Tuesday Blitz"]
[Site "Chess.com"]
[Date "2020.05.12"]
[Round "8"]
[White "krstulov_alex"]
[Black "Ceejay271"]
[Result "0-1"]
[WhiteElo "2535"]
[BlackElo "2393"]
[TimeControl "180+1"]
[EndTime "11:31:18 PDT"]
[Termination "Ceejay271 won by resignation"]

1. d4 {[%clk 0:03:00.9]} 1... Nf6 {[%clk 0:02:59.1]} 2. c4 {[%clk 0:03:00.2]}
2... e6 {[%clk 0:02:58.7]} 3. Nf3 {[%clk 0:03:00.8]} 3... d5 {[%clk 0:02:57.7]}
4. Nc3 {[%clk 0:03:00.7]} 4... Nbd7 {[%clk 0:02:56.1]} 5. Bf4 {[%clk 0:02:59.4]}
5... dxc4 {[%clk 0:02:53.9]} 6. e3 {[%clk 0:02:59.2]} 6... Nd5 {[%clk
0:02:52.8]} 7. Bxc4 {[%clk 0:02:59.1]} 7... Nxf4 {[%clk 0:02:51.8]} 8. exf4
{[%clk 0:03:00]} 8... Be7 {[%clk 0:02:49.8]} 9. O-O {[%clk 0:02:59.1]} 9... O-O
{[%clk 0:02:49.3]} 10. Ne5 {[%clk 0:02:58.1]} 10... Nxe5 {[%clk 0:02:45.3]} 11.
fxe5 {[%clk 0:02:24.3]} 11... a6 {[%clk 0:02:42.7]} 12. Qg4 {[%clk 0:02:18.4]}
12... b5 {[%clk 0:02:39.4]} 13. Bd3 {[%clk 0:02:17]} 13... Bb7 {[%clk
0:02:38.6]} 14. Ne4 {[%clk 0:02:13.6]} 14... Qd5 {[%clk 0:02:22.1]} 15. Rfd1
{[%clk 0:02:08.1]} 15... Rad8 {[%clk 0:02:17.3]} 16. Rac1 {[%clk 0:02:06.6]}
16... Rd7 {[%clk 0:02:00.5]} 17. Bb1 {[%clk 0:02:02.2]} 17... Kh8 {[%clk
0:01:42.9]} 18. b3 {[%clk 0:01:35.8]} 18... f5 {[%clk 0:01:36.8]} 19. exf6
{[%clk 0:01:31.8]} 19... gxf6 {[%clk 0:01:36.3]} 20. Qh3 {[%clk 0:01:19.6]}
20... Rg8 {[%clk 0:01:29.5]} 21. f3 {[%clk 0:01:17.5]} 21... f5 {[%clk 0:01:24]}
22. Nc3 {[%clk 0:01:12.9]} 22... Qxf3 {[%clk 0:01:21.3]} 23. Qxf3 {[%clk
0:01:01.2]} 23... Bxf3 {[%clk 0:01:22.2]} 24. Rd2 {[%clk 0:01:02.1]} 24... c5
{[%clk 0:01:16.8]} 25. d5 {[%clk 0:00:59.6]} 25... Bf6 {[%clk 0:01:12.8]} 26.
Kh1 {[%clk 0:00:55.9]} 26... Bxc3 {[%clk 0:01:09.6]} 27. Rxc3 {[%clk 0:00:55.6]}
27... Rxd5 {[%clk 0:01:07.2]} 28. Bd3 {[%clk 0:00:39.2]} 28... Be4 {[%clk
0:01:02.4]} 0-1